lending/lending_fUSD_20250913
["ID","MTS","AMOUNT","RATE_DAILY","PERIOD"]
[385293521,1757753443823,-400.0,0.00031314,2]
[385293522,1757753443833,-400.0,0.00031314,2]
[385293523,1757753443842,-611.33,0.00031314,2]
[385293524,1757753443851,-1828.89,0.00031314,2]
[385293525,1757753443860,-3765.88,0.00031314,2]
[385293526,1757753443869,-481.76,0.00031314,2]
[385293527,1757753443878,-400.0,0.00031314,2]
[385293528,1757753443889,-727.35,0.00031314,2]
[385293529,1757753443899,-613.19,0.00031314,2]
[385293530,1757753443909,-599.42,0.00031314,2]
[385293531,1757753443919,-648.09,0.00031314,2]
[385293532,1757753443929,-1045.52,0.00031314,2]
[385293533,1757753443940,-618.59,0.00031314,2]
[385293534,1757753443950,-553.73,0.00031314,2]
[385293535,1757753443959,-889.25,0.00031314,2]
[385293536,1757753443968,-503.73,0.00031314,2]
[385293537,1757753443978,-491.48,0.00031314,2]
[385293538,1757753443988,-612.46,0.00031314,2]
[385293539,1757753443997,-400.0,0.00031314,2]
[385293540,1757753444007,-505.29,0.00031314,2]
[385293541,1757753444016,-3021.79,0.00031314,2]
[385293542,1757753444025,-2135.14,0.00031314,2]
[385293543,1757753444034,-579.01,0.00031314,2]
[385293544,1757753444043,-499.28,0.00031314,2]
[385293545,1757753444053,-772.93,0.00031314,2]
[385293546,1757753444062,-652.56,0.00031314,2]
[385293547,1757753444070,-531.58,0.00031314,2]
[385293548,1757753444080,-863.95,0.00031314,2]
[385293549,1757753444089,-1365.01,0.00031314,2]
[385293550,1757753444098,-728.48,0.00031314,2]
[385293551,1757753444107,-400.0,0.00031314,2]
[385293552,1757753444116,-550.84,0.00031314,2]
[385293553,1757753444126,-400.0,0.00031314,2]
[385293554,1757753444135,-1796.47,0.00031314,2]
[385293555,1757753444144,-512.83,0.00031314,2]
[385293556,1757753444153,-400.0,0.00031314,2]
[385293557,1757753444163,-2614.6,0.00031314,2]
[385293558,1757753444171,-2484.85,0.00031314,2]
[385293559,1757753444180,-612.3,0.00031314,2]
[385293560,1757753444190,-715.95313763,0.00031319,2]
[385293561,1757753444200,-3715.4,0.00031426,2]
[385293562,1757753444210,-196.45,0.00031426,2]
[385293563,1757753444219,-9999.99,0.00031426,2]
[385293564,1757753444230,-150.99,0.00031426,2]
[385293565,1757753444240,-473.45,0.00031426,2]
[385293566,1757753444249,-9999.99,0.00031426,2]
[385293567,1757753444522,-14641.92,0.00031426,10]
[385293568,1757753444532,-999.99,0.00031426,2]
[385293569,1757753444543,-404.84,0.00031428,3]
[385293570,1757753444552,-404.81,0.0003144,3]
[385293571,1757753444562,-754.06471149,0.00031453,2]
[385293572,1757753444572,-1399.26140916,0.00031517,2]
[385293573,1757753444582,-155.063939,0.00031518,15]
[385293574,1757753444591,-2500.0,0.00031518,2]
[385293575,1757753444600,-432.56099731,0.00031537,2]
[385293576,1757753444610,-1399.26140913,0.0003156,2]
[385293577,1757753444619,-342.22,0.00031578,2]
[385293578,1757753444629,-792.17628536,0.00031587,2]
[385293579,1757753444638,-404.63375935,0.00031588,2]
[385293580,1757753444647,-400.0,0.00031588,2]
[385293581,1757753444658,-400.0,0.00031588,2]
[385293582,1757753444667,-400.0,0.00031588,2]
[385293583,1757753444677,-400.0,0.00031588,2]
[385293584,1757753444686,-611.33,0.00031588,2]
[385293585,1757753444695,-1828.89,0.00031588,2]
[385293586,1757753444705,-3765.88,0.00031588,2]
[385293587,1757753444715,-481.76,0.00031588,2]
[385293588,1757753444724,-400.0,0.00031588,2]
[385293589,1757753444733,-727.35,0.00031588,2]
[385293590,1757753444743,-613.19,0.00031588,2]
[385293591,1757753444756,-599.42,0.00031588,2]
[385293592,1757753444765,-648.09,0.00031588,2]
[385293593,1757753444774,-1045.52,0.00031588,2]
[385293594,1757753444783,-618.59,0.00031588,2]
[385293595,1757753444794,-553.73,0.00031588,2]
[385293596,1757753444804,-889.25,0.00031588,2]
[385293597,1757753444814,-503.73,0.00031588,2]
[385293598,1757753444823,-491.48,0.00031588,2]
[385293599,1757753444832,-612.46,0.00031588,2]
[385293600,1757753444842,-400.0,0.00031588,2]
[385293601,1757753444852,-505.29,0.00031588,2]
[385293602,1757753444861,-3021.79,0.00031588,2]
[385293603,1757753444871,-2135.14,0.00031588,2]
[385293604,1757753444880,-579.01,0.00031588,2]
[385293605,1757753444889,-499.28,0.00031588,2]
[385293606,1757753444898,-772.93,0.00031588,2]
[385293607,1757753444908,-652.56,0.00031588,2]
[385293608,1757753444917,-531.58,0.00031588,2]
[385293609,1757753444927,-863.95,0.00031588,2]
[385293610,1757753444936,-1365.01,0.00031588,2]
[385293611,1757753444946,-728.48,0.00031588,2]
[385293612,1757753444955,-400.0,0.00031588,2]
[385293613,1757753444965,-550.84,0.00031588,2]
[385293614,1757753444975,-400.0,0.00031588,2]
[385293615,1757753444984,-1796.47,0.00031588,2]
[385293616,1757753444994,-512.83,0.00031588,2]
[385293617,1757753445003,-400.0,0.00031588,2]
[385293618,1757753445013,-2614.6,0.00031588,2]
[385293619,1757753445023,-2484.85,0.00031588,2]
[385293620,1757753445033,-612.3,0.00031588,2]
[385293621,1757753445042,-404.81,0.000316,3]
[385293622,1757753445051,-1399.26140913,0.00031602,2]
[385293623,1757753445061,-342.22,0.00031607,2]
[385293624,1757753445071,-6617.91755893,0.00031608,2]
[385293625,1757753445080,-342.22,0.00031608,2]
[385293626,1757753445089,-342.22,0.00031608,2]
[385293627,1757753445099,-342.22,0.00031608,2]
[385293628,1757753445108,-13235.8351179,0.00031609,2]
[385293629,1757753445117,-400.0,0.00031617,2]
[385293630,1757753445127,-448.21,0.00031617,2]
[385293631,1757753445136,-821.18,0.00031617,2]
[385293632,1757753445147,-1046.97,0.00031617,2]
[385293633,1757753445157,-705.32,0.00031617,2]
[385293634,1757753445167,-804.39,0.00031617,2]
[385293635,1757753445176,-462.43,0.00031617,2]
[385293636,1757753445184,-461.59,0.00031617,2]
[385293637,1757753445193,-682.12,0.00031617,2]
[385293638,1757753445203,-482.31,0.00031617,2]
[385293639,1757753445212,-445.66,0.00031617,2]
[385293640,1757753445221,-924.51,0.00031617,2]
[385293641,1757753445231,-645.28,0.00031617,2]
[385293642,1757753445240,-1443.0,0.00031617,2]
[385293643,1757753445249,-400.0,0.00031617,2]
[385293644,1757753445258,-473.97,0.00031617,2]
[385293645,1757753445267,-400.0,0.00031617,2]
[385293646,1757753445276,-1259.76,0.00031617,2]
[385293647,1757753445286,-855.57,0.00031617,2]
[385293648,1757753445296,-400.0,0.00031617,2]
[385293649,1757753445306,-902.31,0.00031617,2]
[385293650,1757753445315,-753.2,0.00031617,2]
[385293651,1757753445324,-510.42,0.00031617,2]
[385293652,1757753445334,-400.0,0.00031617,2]
[385293653,1757753445345,-461.05,0.00031617,2]
[385293654,1757753445355,-2230.79,0.00031617,2]
[385293655,1757753445365,-994.65,0.00031617,2]
[385293656,1757753445375,-400.0,0.00031617,2]
[385293657,1757753445385,-587.62,0.00031617,2]
[385293658,1757753445394,-400.0,0.00031617,2]
[385293659,1757753445404,-400.0,0.00031617,2]
[385293660,1757753445414,-612.14,0.00031617,2]
[385293661,1757753445424,-400.0,0.00031617,2]
[385293662,1757753445435,-400.0,0.00031617,2]
[385293663,1757753445446,-680.12,0.00031617,2]
[385293664,1757753445455,-562.83,0.00031617,2]
[385293665,1757753445465,-400.0,0.00031617,2]
[385293666,1757753445474,-400.0,0.00031617,2]
[385293667,1757753445487,-448.43,0.00031617,2]
[385293668,1757753445496,-437.58,0.00031617,2]
[385293669,1757753445505,-987.5,0.00031617,2]
[385293670,1757753445515,-592.89,0.00031617,2]
[385293671,1757753445526,-400.0,0.00031617,2]
[385293672,1757753445536,-2380.98,0.00031617,2]
[385293673,1757753445547,-400.0,0.00031617,2]
[385293674,1757753445556,-400.0,0.00031617,2]
[385293675,1757753445567,-400.0,0.00031617,2]
[385293676,1757753445576,-7528.99,0.00031617,2]
[385293677,1757753445586,-400.0,0.00031617,2]
[385293678,1757753445596,-533.4,0.00031617,2]
[385293679,1757753445606,-400.0,0.00031617,2]
[385293680,1757753445615,-4687.189297,0.00031617,2]
[385293681,1757753445625,-400.0,0.00031617,2]
[385293683,1757753445634,-150.866427,0.00031617,2]
[385293684,1757753445645,-652.08,0.00031617,2]
[385293685,1757753445655,-3368.195074,0.00031617,2]
[385293686,1757753445665,-4102.201758,0.00031617,2]
[385293687,1757753445674,-400.0,0.00031618,2]
[385293688,1757753445684,-684.85,0.00031618,2]
[385293691,1757753445694,-400.0,0.00031618,2]
[385293692,1757753445703,-589.66,0.00031618,2]
[385293693,1757753445712,-894.69,0.00031618,2]
[385293694,1757753445722,-1567.43,0.00031618,2]
[385293695,1757753445732,-400.0,0.00031618,2]
[385293696,1757753445742,-417.16,0.00031618,2]
[385293697,1757753445751,-497.22,0.00031618,2]
[385293698,1757753445760,-871.69,0.00031618,2]
[385293699,1757753445770,-721.23,0.00031618,2]
[385293700,1757753445779,-1028.03,0.00031618,2]
[385293701,1757753445789,-759.27,0.00031618,2]
[385293702,1757753445798,-400.0,0.00031618,2]
[385293704,1757753445807,-522.45,0.00031618,2]
[385293706,1757753445817,-484.7,0.00031618,2]
[385293707,1757753445826,-1076.06,0.00031618,2]
[385293708,1757753445836,-530.25,0.00031618,2]
[385293709,1757753445847,-400.0,0.00031618,2]
[385293710,1757753445856,-400.0,0.00031618,2]
[385293711,1757753445865,-763.04,0.00031618,2]
[385293712,1757753445874,-602.74,0.00031618,2]
[385293713,1757753445883,-530.39,0.00031618,2]
[385293715,1757753445893,-400.0,0.00031618,2]
[385293717,1757753445902,-680.28,0.00031618,2]
[385293718,1757753445911,-400.0,0.00031618,2]
[385293719,1757753445922,-768.13,0.00031618,2]
[385293720,1757753445931,-447.59,0.00031618,2]
[385293721,1757753445940,-533.08,0.00031618,2]
[385293722,1757753445950,-679.27,0.00031618,2]
[385293723,1757753445959,-552.61,0.00031618,2]
[385293724,1757753445968,-813.93,0.00031618,2]
[385293725,1757753445977,-446.72,0.00031618,2]
[385293726,1757753445987,-498.22,0.00031618,2]
[385293727,1757753445996,-451.39,0.00031618,2]
[385293728,1757753446006,-584.74,0.00031618,2]
[385293729,1757753446017,-400.0,0.00031618,2]
[385293730,1757753446027,-629.96,0.00031618,2]
[385293731,1757753446036,-606.25,0.00031618,2]
[385293732,1757753446046,-759.98,0.00031618,2]
[385293733,1757753446056,-400.0,0.00031618,2]
[385293734,1757753446065,-558.07,0.00031618,2]
[385293735,1757753446074,-400.0,0.00031618,2]
[385293736,1757753446084,-400.0,0.00031618,2]
[385293737,1757753446093,-500.0,0.00031618,2]
[385293738,1757753446104,-400.0,0.00031618,2]
[385293739,1757753446114,-400.0,0.00031618,2]
[385293740,1757753446123,-400.0,0.00031618,2]
[385293741,1757753446132,-642.94,0.00031618,2]
[385293742,1757753446143,-400.0,0.00031618,2]
[385293743,1757753446153,-400.0,0.00031618,2]
[385293744,1757753446163,-400.0,0.00031618,2]
[385293745,1757753446172,-400.0,0.00031618,2]
[385293746,1757753446181,-400.0,0.00031618,2]
[385293747,1757753446190,-542.42,0.00031618,2]
[385293748,1757753446199,-400.0,0.00031618,2]
[385293749,1757753446208,-400.0,0.00031618,2]
[385293750,1757753446218,-400.0,0.00031618,2]
[385293751,1757753446228,-400.0,0.00031618,2]
[385293752,1757753446237,-400.0,0.00031618,2]
[385293753,1757753446246,-2280.62,0.00031618,2]
[385293754,1757753446255,-470.38,0.00031618,2]
[385293755,1757753446266,-400.0,0.00031618,2]
[385293756,1757753446279,-522.34,0.00031618,2]
[385293757,1757753446288,-400.0,0.00031618,2]
[385293758,1757753446298,-400.0,0.00031618,2]
[385293759,1757753446307,-242.0203661,0.00031618,2]
[385293760,1757753446320,-400.0,0.00031618,2]
[385293761,1757753446330,-400.0,0.00031618,2]
[385293762,1757753446341,-400.0,0.00031618,2]
[385293763,1757753446351,-400.0,0.00031618,2]
[385293764,1757753446361,-483.11,0.00031618,2]
[385293765,1757753446370,-407.95158847,0.00031618,2]
[385293766,1757753446379,-400.0,0.00031618,2]
[385293767,1757753446389,-679.31,0.00031618,2]
[385293768,1757753446399,-403.49,0.00031618,2]
[385293769,1757753446410,-400.0,0.00031618,2]
[385293770,1757753446420,-400.0,0.00031618,2]
[385293771,1757753446430,-571.09,0.00031618,2]
[385293772,1757753446439,-400.0,0.00031618,2]
[385293773,1757753446448,-400.0,0.00031618,2]
[385293774,1757753446457,-403.65051208,0.00031618,2]
[385293775,1757753446466,-400.0,0.00031618,2]
[385293776,1757753446475,-400.0,0.00031618,2]
[385293777,1757753446485,-400.0,0.00031618,2]
[385293778,1757753446494,-785.22,0.00031618,2]
[385293779,1757753446503,-400.0,0.00031618,2]
[385293780,1757753446512,-554.91,0.00031618,2]
[385293781,1757753446522,-577.62,0.00031618,2]
[385293782,1757753446531,-312.10864945,0.00031618,2]
[385293783,1757753446541,-400.0,0.00031618,2]
[385293784,1757753446550,-400.0,0.00031618,2]
[385293785,1757753446559,-400.0,0.00031618,2]
[385293786,1757753446568,-400.0,0.00031618,2]
[385293787,1757753446578,-400.0,0.00031618,2]
[385293788,1757753446587,-732.02,0.00031618,2]
[385293789,1757753446597,-400.0,0.00031618,2]
[385293790,1757753446607,-400.0,0.00031618,2]
[385293791,1757753446616,-400.0,0.00031618,2]
[385293792,1757753446626,-441.85,0.00031618,2]
[385293793,1757753446635,-400.0,0.00031618,2]
[385293794,1757753446645,-425.66,0.00031618,2]
[385293795,1757753446655,-400.0,0.00031618,2]
[385293796,1757753446665,-2805.78,0.00031618,2]
[385293797,1757753446675,-400.0,0.00031618,2]
[385293798,1757753446684,-400.0,0.00031618,2]
[385293799,1757753446693,-400.0,0.00031618,2]
[385293800,1757753446702,-400.0,0.00031618,2]
[385293801,1757753446711,-523.94,0.00031618,2]
[385293802,1757753446721,-400.0,0.00031618,2]
[385293804,1757753446730,-1414.74,0.00031618,2]
[385293805,1757753446739,-415.39362964,0.00031618,2]
[385293806,1757753446749,-616.7,0.00031618,2]
[385293807,1757753446759,-400.0,0.00031618,2]
[385293808,1757753446768,-405.94136487,0.00031618,2]
[385293809,1757753446777,-400.0,0.00031618,2]
[385293810,1757753446786,-400.0,0.00031618,2]
[385293811,1757753446796,-400.0,0.00031618,2]
[385293812,1757753446806,-500.0,0.00031618,2]
[385293813,1757753446816,-400.0,0.00031618,2]
[385293814,1757753446825,-479.7,0.00031618,2]
[385293815,1757753446835,-400.0,0.00031618,2]
[385293816,1757753446845,-518.39,0.00031618,2]
[385293817,1757753446855,-400.0,0.00031618,2]
[385293818,1757753446864,-495.22,0.00031618,2]
[385293819,1757753446873,-400.0,0.00031618,2]
[385293820,1757753446882,-405.26353551,0.00031618,2]
[385293821,1757753446892,-650.77,0.00031618,2]
[385293822,1757753446902,-400.0,0.00031618,2]
[385293823,1757753446913,-400.0,0.00031618,2]
[385293824,1757753446923,-404.10436591,0.00031618,2]
[385293825,1757753446932,-459.0,0.00031618,2]
[385293826,1757753446941,-400.0,0.00031618,2]
[385293827,1757753446951,-400.0,0.00031618,2]
[385293828,1757753446960,-818.92,0.00031618,2]
[385293829,1757753446969,-404.5094751,0.00031618,2]
[385293830,1757753446979,-400.0,0.00031618,2]
[385293831,1757753446988,-600.29,0.00031618,2]
[385293832,1757753446997,-400.0,0.00031618,2]
[385293833,1757753447006,-400.0,0.00031618,2]
[385293834,1757753447017,-548.82,0.00031618,2]
[385293835,1757753447026,-400.0,0.00031618,2]
[385293836,1757753447036,-400.0,0.00031618,2]
[385293837,1757753447046,-400.0,0.00031618,2]
[385293838,1757753447056,-400.0,0.00031618,2]
[385293839,1757753447065,-720.8,0.00031618,2]
[385293840,1757753447075,-400.0,0.00031618,2]
[385293841,1757753447084,-518.01925232,0.00031618,2]
[385293842,1757753447094,-400.0,0.00031618,2]
[385293843,1757753447103,-431.69501771,0.00031618,2]
[385293844,1757753447113,-400.0,0.00031618,2]
[385293845,1757753447123,-400.0,0.00031618,2]
[385293846,1757753447134,-755.99,0.00031618,2]
[385293847,1757753447146,-400.0,0.00031618,2]
[385293848,1757753447156,-400.0,0.00031618,2]
[385293849,1757753447166,-463.01,0.00031618,2]
[385293850,1757753447175,-400.0,0.00031618,2]
[385293851,1757753447184,-441.14,0.00031618,2]
[385293852,1757753447193,-400.0,0.00031618,2]
[385293853,1757753447204,-474.94,0.00031618,2]
[385293854,1757753447214,-400.0,0.00031618,2]
[385293855,1757753447224,-400.0,0.00031618,2]
[385293856,1757753447236,-533.21,0.00031618,2]
[385293857,1757753447246,-575.05,0.00031618,2]
[385293858,1757753447255,-400.0,0.00031618,2]
[385293859,1757753447265,-891.6,0.00031618,2]
[385293860,1757753447274,-400.0,0.00031618,2]
[385293861,1757753447283,-400.0,0.00031618,2]
[385293862,1757753447292,-523.66,0.00031618,2]
[385293863,1757753447302,-400.0,0.00031618,2]
[385293864,1757753447310,-863.65,0.00031618,2]
[385293865,1757753447319,-400.0,0.00031618,2]
[385293866,1757753447328,-1894.02,0.00031618,2]
[385293867,1757753447339,-400.0,0.00031618,2]
[385293868,1757753447354,-400.0,0.00031618,2]
[385293869,1757753447363,-400.0,0.00031618,2]
[385293870,1757753447373,-400.0,0.00031618,2]
[385293871,1757753447382,-621.2,0.00031618,2]
[385293872,1757753447391,-400.0,0.00031618,2]
[385293873,1757753447401,-1544.58,0.00031618,2]
[385293874,1757753447410,-400.0,0.00031618,2]
[385293875,1757753447419,-1456.93,0.00031618,2]
[385293876,1757753447428,-557.64,0.00031618,2]
[385293877,1757753447437,-400.0,0.00031618,2]
[385293878,1757753447447,-400.0,0.00031618,2]
[385293879,1757753447456,-400.0,0.00031618,2]
[385293880,1757753447466,-562.08,0.00031618,2]
[385293881,1757753447475,-400.0,0.00031618,2]
[385293882,1757753447484,-405.78661115,0.00031618,2]
[385293883,1757753447494,-703.16,0.00031618,2]
[385293884,1757753447503,-1000.09,0.00031618,2]
[385293885,1757753447512,-722.17,0.00031618,2]
[385293886,1757753447521,-400.0,0.00031618,2]
[385293887,1757753447531,-400.0,0.00031618,2]
[385293888,1757753447539,-400.0,0.00031618,2]
[385293889,1757753447549,-400.0,0.00031618,2]
[385293890,1757753447558,-400.0,0.00031618,2]
[385293891,1757753447567,-400.0,0.00031618,2]
[385293892,1757753447577,-400.0,0.00031618,2]
[385293893,1757753447586,-643.83,0.00031618,2]
[385293894,1757753447597,-400.0,0.00031618,2]
[385293895,1757753447606,-400.0,0.00031618,2]
[385293896,1757753447615,-641.57,0.00031618,2]
[385293897,1757753447624,-400.0,0.00031618,2]
[385293898,1757753447634,-454.36,0.00031618,2]
[385293899,1757753447643,-730.14,0.00031618,2]
[385293900,1757753447652,-400.0,0.00031618,2]
[385293901,1757753447661,-462.05,0.00031618,2]
[385293902,1757753447671,-400.0,0.00031618,2]
[385293903,1757753447680,-400.0,0.00031618,2]
[385293904,1757753447690,-412.11,0.00031618,2]
[385293905,1757753447699,-400.0,0.00031618,2]
[385293906,1757753447708,-400.0,0.00031618,2]
[385293907,1757753447717,-400.0,0.00031618,2]
[385293908,1757753447727,-400.0,0.00031618,2]
[385293909,1757753447736,-501.12,0.00031618,2]
[385293910,1757753447745,-400.0,0.00031618,2]
[385293911,1757753447754,-400.0,0.00031618,2]
[385293912,1757753447763,-400.0,0.00031618,2]
[385293913,1757753447773,-400.0,0.00031618,2]
[385293914,1757753447782,-400.0,0.00031618,2]
[385293915,1757753447791,-593.09,0.00031618,2]
[385293916,1757753447801,-1097.07,0.00031618,2]
[385293917,1757753447810,-400.0,0.00031618,2]
[385293918,1757753447819,-618.4,0.00031618,2]
[385293919,1757753447828,-400.0,0.00031618,2]
[385293920,1757753447837,-601.91,0.00031618,2]
[385293921,1757753447847,-400.0,0.00031618,2]
[385293922,1757753447856,-592.37,0.00031618,2]
[385293923,1757753447865,-400.0,0.00031618,2]
[385293924,1757753447875,-400.0,0.00031618,2]
[385293925,1757753447884,-798.82,0.00031618,2]
[385293926,1757753447893,-400.0,0.00031618,2]
[385293927,1757753447902,-438.3,0.00031618,2]
[385293928,1757753447912,-400.0,0.00031618,2]
[385293929,1757753447922,-730.3,0.00031618,2]
[385293930,1757753447930,-400.0,0.00031618,2]
[385293931,1757753447940,-400.0,0.00031618,2]
[385293932,1757753447949,-400.0,0.00031618,2]
[385293933,1757753447959,-748.87,0.00031618,2]
[385293934,1757753447971,-400.0,0.00031618,2]
[385293935,1757753447981,-400.0,0.00031618,2]
[385293936,1757753447990,-400.0,0.00031618,2]
[385293937,1757753448000,-500.0,0.00031618,2]
[385293938,1757753448009,-400.0,0.00031618,2]
[385293939,1757753448018,-1527.46,0.00031618,2]
[385293940,1757753448028,-400.0,0.00031618,2]
[385293941,1757753448037,-400.0,0.00031618,2]
[385293942,1757753448047,-400.0,0.00031618,2]
[385293943,1757753448057,-638.01169302,0.00031618,30]
[385293944,1757753448066,-400.0,0.00031618,2]
[385293945,1757753448076,-1885.76,0.00031618,2]
[385293946,1757753448085,-400.0,0.00031618,2]
[385293947,1757753448095,-2500.24,0.00031618,2]
[385293948,1757753448104,-400.0,0.00031618,2]
[385293949,1757753448113,-400.0,0.00031618,2]
[385293950,1757753448123,-458.0,0.00031618,2]
[385293951,1757753448133,-400.0,0.00031618,2]
[385293952,1757753448143,-489.28,0.00031618,2]
[385293953,1757753448152,-513.21,0.00031618,2]
[385293954,1757753448162,-1134.07,0.00031618,2]
[385293955,1757753448171,-400.0,0.00031618,2]
[385293956,1757753448182,-609.38,0.00031618,2]
[385293957,1757753448191,-400.0,0.00031618,2]
[385293958,1757753448203,-400.0,0.00031618,2]
[385293959,1757753448213,-506.47,0.00031618,2]
[385293960,1757753448222,-1069.09,0.00031618,2]
[385293961,1757753448231,-400.0,0.00031618,2]
[385293962,1757753448241,-1609.66,0.00031618,2]
[385293963,1757753448250,-400.0,0.00031618,2]
[385293964,1757753448260,-400.0,0.00031618,2]
[385293965,1757753448271,-400.0,0.00031618,2]
[385293966,1757753448281,-5000.0,0.00031618,2]
[385293967,1757753448290,-27215.4286,0.00031619,2]
[385293968,1757753448300,-2510.8484,0.00031619,2]
[385293969,1757753448311,-168.0,0.0003162,2]
[385293970,1757753448321,-168.55,0.00031634,2]
[385293971,1757753448331,-1399.26140913,0.00031645,2]
[385293972,1757753448340,-1399.26140913,0.00031687,2]
[385293973,1757753448352,-1619.24,0.000317,3]
[385293974,1757753448362,-150.92,0.00031703,2]
[385293975,1757753448371,-13235.8351179,0.00031707,2]
[385293976,1757753448381,-13235.8351179,0.00031708,2]
[385293977,1757753448391,-72797.0931482,0.00031708,2]
[385293978,1757753448401,-33089.5877947,0.00031709,2]
[385293979,1757753448410,-632.51891139,0.00031709,2]
[385293980,1757753448420,-33089.5877947,0.00031715,2]
[385293981,1757753448429,-632.51891139,0.00031715,2]
[385293982,1757753448442,-39707.5053536,0.00031716,2]
[385293983,1757753448451,-1897.55673417,0.00031716,2]
[385293984,1757753448461,-404.12694992,0.00031717,2]
[385293985,1757753448471,-400.0,0.00031717,2]
[385293986,1757753448481,-404.88754114,0.00031717,2]
[385293987,1757753448490,-503.55747931,0.00031717,2]
[385293988,1757753448500,-403.56332269,0.00031717,2]
[385293989,1757753448510,-400.0,0.00031717,2]
[385293990,1757753448520,-401.96807544,0.00031717,2]
[385293991,1757753448790,-400.0,0.00031717,2]
[385293992,1757753448800,-400.0,0.00031717,2]
[385293993,1757753448810,-400.0,0.00031717,2]
[385293994,1757753448820,-400.0,0.00031717,2]
[385293995,1757753448830,-402.08644274,0.00031717,2]
[385293996,1757753448839,-405.7171103,0.00031717,2]
[385293997,1757753448850,-400.0,0.00031717,2]
[385293998,1757753448859,-410.44865893,0.00031717,2]
[385293999,1757753448869,-404.61179351,0.00031717,2]
[385294000,1757753448879,-407.19069941,0.00031717,2]
[385294001,1757753448888,-400.0,0.00031717,2]
[385294002,1757753448898,-402.67207935,0.00031717,2]
[385294003,1757753448907,-400.0,0.00031717,2]
[385294004,1757753448916,-400.0,0.00031717,2]
[385294005,1757753448926,-274.45525383,0.00031717,2]
[385294006,1757753448936,-408.44745213,0.00031717,2]
[385294007,1757753448946,-400.0,0.00031717,2]
[385294008,1757753448955,-402.41167738,0.00031717,2]
[385294009,1757753448966,-400.0,0.00031717,2]
[385294010,1757753448975,-402.82841735,0.00031717,2]
[385294011,1757753448985,-416.72424924,0.00031717,2]
[385294012,1757753448994,-400.0,0.00031717,2]
[385294013,1757753449004,-485.2612032,0.00031717,2]
[385294014,1757753449014,-400.0,0.00031717,2]
[385294015,1757753449023,-400.0,0.00031717,2]
[385294016,1757753449033,-400.0,0.00031717,2]
[385294017,1757753449052,-400.0,0.00031717,2]
[385294018,1757753449063,-400.0,0.00031717,2]
[385294019,1757753449074,-415.63393506,0.00031717,2]
[385294020,1757753449084,-412.11277915,0.00031717,2]
[385294021,1757753449094,-400.0,0.00031717,2]
[385294022,1757753449104,-400.0,0.00031717,2]
[385294023,1757753449114,-404.83120497,0.00031717,2]
[385294024,1757753449124,-402.49088616,0.00031717,2]
[385294025,1757753449135,-404.1577092,0.00031717,2]
[385294026,1757753449145,-419.97577302,0.00031717,2]
[385294027,1757753449156,-400.0,0.00031717,2]
[385294028,1757753449166,-436.85677633,0.00031717,2]